bitfinex/quotes_BTCUSD_20251202
["timestamp","ask_amount","ask_price","bid_price","bid_amount"]
[1764646429621,0.00011557,86386.0,86385.0,0.08605778]
[1764646430361,0.00011557,86386.0,86385.0,0.03698778]
[1764646431480,0.23163456,86386.0,86385.0,0.03698778]
[1764646431674,0.00011557,86386.0,86385.0,0.03698778]
[1764646432876,0.00011557,86386.0,86385.0,0.08605778]
[1764646433420,0.00011557,86386.0,86385.0,0.03698778]
[1764646434054,0.00011557,86386.0,86385.0,0.08605778]
[1764646434257,0.00011557,86386.0,86385.0,0.08305778]
[1764646434460,0.00011557,86386.0,86385.0,0.09454186]
[1764646434781,0.00011557,86386.0,86385.0,0.09854186]
[1764646434977,0.00011557,86386.0,86385.0,0.03798778]
[1764646435156,0.00011557,86386.0,86385.0,0.08705778]
[1764646435346,0.00011557,86386.0,86385.0,0.08405778]
[1764646435740,0.00011557,86386.0,86385.0,0.08905778]
[1764646436003,0.00011557,86386.0,86385.0,0.08405778]
[1764646436410,0.00011557,86386.0,86385.0,0.03998778]
[1764646436411,0.23163456,86386.0,86385.0,0.03998778]
[1764646436614,0.23163456,86386.0,86385.0,0.03898778]
[1764646436816,0.00011557,86386.0,86385.0,0.03898778]
[1764646437049,0.00011557,86386.0,86385.0,0.08905778]
[1764646437260,0.00011557,86386.0,86385.0,0.10054186]
[1764646440790,0.00011557,86386.0,86385.0,0.32057945]
[1764646440946,0.00011557,86386.0,86385.0,0.33206353]
[1764646441351,0.00011557,86386.0,86385.0,0.32057945]
[1764646441554,0.00011557,86386.0,86385.0,0.33206353]
[1764646447368,0.23146205,86408.0,86402.0,0.24304957]
[1764646447572,0.23146205,86408.0,86403.0,0.01292]
[1764646447976,0.24303505,86408.0,86403.0,0.06337]
[1764646448180,0.01157327,86406.0,86403.0,0.06337]
[1764646448384,0.01157327,86406.0,86403.0,0.07494367]
[1764646448585,0.01157313,86407.0,86405.0,0.03585]
[1764646448837,0.01157313,86407.0,86406.0,0.03585]
[1764646449038,0.011573,86408.0,86406.0,0.03585]
[1764646449240,0.011573,86408.0,86407.0,0.03585]
[1764646449457,0.011573,86408.0,86407.0,0.0863]
[1764646449753,0.33457233,86413.0,86407.0,0.03585]
[1764646449933,0.0115726,86411.0,86408.0,0.01307]
[1764646450266,0.01157313,86407.0,86404.0,0.01299]
[1764646450477,0.01157286,86409.0,86404.0,0.01299]
[1764646450676,0.01157286,86409.0,86404.0,0.02456353]
[1764646450825,0.011573,86408.0,86404.0,0.02456353]
[1764646451034,0.24303439,86408.0,86404.0,0.02456353]
[1764646451242,0.01157313,86407.0,86404.0,0.01299]
[1764646451597,0.24303783,86407.0,86404.0,0.01299]
[1764646451838,0.23146808,86405.0,86404.0,0.01299]
[1764646452049,0.26820808,86405.0,86404.0,0.001]
[1764646452227,0.23147344,86403.0,86402.0,0.00038489]
[1764646452369,0.26821344,86403.0,86402.0,0.00038489]
[1764646452565,0.65749147,86403.0,86402.0,0.00038489]
[1764646452811,0.68370093,86403.0,86402.0,0.00038489]
[1764646457431,0.71455784,86403.0,86402.0,0.00038489]
[1764646459416,2.73633151,86403.0,86402.0,0.00038489]
[1764646459624,3.15337193,86403.0,86402.0,1e-08]
[1764646459989,2.56598826,86393.0,86392.0,0.0002548]
[1764646460137,2.67053207,86393.0,86392.0,0.0002548]
[1764646460338,2.71018404,86393.0,86392.0,0.0002548]
[1764646460577,2.87171602,86393.0,86392.0,0.0002548]
[1764646461163,2.75649006,86393.0,86392.0,0.0002548]
[1764646461521,2.75649006,86393.0,86392.0,0.0012548]
[1764646461917,0.67554203,86393.0,86392.0,0.0012548]
[1764646462102,0.72668203,86393.0,86392.0,0.0012548]
[1764646462256,0.69186404,86393.0,86392.0,0.0012548]
[1764646462457,0.60489404,86393.0,86392.0,0.0012548]
[1764646463070,0.58018655,86393.0,86392.0,0.0012548]
[1764646464799,0.55488655,86393.0,86392.0,0.0512148]
[1764646464974,0.00038632,86393.0,86392.0,0.1031548]
[1764646465469,0.00038632,86393.0,86392.0,0.0512148]
[1764646465685,0.00038632,86393.0,86392.0,0.0012548]
[1764646465686,0.03621632,86393.0,86392.0,0.0012548]
[1764646465834,0.41035632,86393.0,86392.0,0.0012548]
[1764646466031,0.41035632,86393.0,86392.0,0.0002548]
[1764646466032,0.44934795,86393.0,86392.0,0.0002548]
[1764646466233,0.44934795,86393.0,86392.0,0.0012548]
[1764646466573,0.44934795,86393.0,86392.0,0.0042548]
[1764646466749,0.44934795,86393.0,86392.0,0.0012548]
[1764646466951,0.44934795,86393.0,86392.0,0.0022548]
[1764646467336,0.44934795,86393.0,86392.0,0.0012548]
[1764646467538,0.44934795,86393.0,86392.0,0.0022548]
[1764646467927,0.44934795,86393.0,86392.0,0.0012548]
[1764646469234,0.4493434,86393.0,86392.0,0.0012548]
[1764646470043,0.46083143,86393.0,86392.0,0.0012548]
[1764646471800,2.46083143,86393.0,86392.0,0.0012548]
[1764646472130,2.4493434,86393.0,86392.0,0.0012548]
[1764646472650,2.46083143,86393.0,86392.0,0.0012548]
[1764646472828,2.57605739,86393.0,86392.0,0.0012548]
[1764646473741,2.4493434,86393.0,86392.0,0.0012548]
[1764646474952,0.4676634,86393.0,86392.0,0.0012548]
[1764646475148,0.4165234,86393.0,86392.0,0.0012548]
[1764646475355,0.4676634,86393.0,86392.0,0.0012548]
[1764646482128,0.49851988,86393.0,86392.0,0.0012548]
[1764646482715,0.58288936,86393.0,86392.0,0.0012548]
[1764646483139,0.61374584,86393.0,86392.0,0.0012548]
[1764646483931,0.62523387,86393.0,86392.0,0.0012548]
[1764646484090,0.59437739,86393.0,86392.0,0.0012548]
[1764646485589,2.59437739,86393.0,86392.0,0.0012548]
[1764646487934,2.83887739,86393.0,86392.0,0.0012548]
[1764646489986,0.6938434,86393.0,86392.0,0.0012548]
[1764646493438,0.67363944,86393.0,86392.0,0.0012548]
[1764646493631,0.72529944,86393.0,86392.0,0.0012548]
[1764646494037,0.67363944,86393.0,86392.0,0.0012548]
[1764646494282,0.25655363,86393.0,86392.0,0.0856548]
[1764646494493,0.25655363,86393.0,86392.0,0.0354848]
[1764646494494,0.23188655,86393.0,86392.0,0.0354848]
[1764646495401,0.23188655,86393.0,86392.0,0.0002548]
[1764646495780,0.23188655,86393.0,86392.0,0.0364848]
[1764646495916,0.23188655,86393.0,86392.0,0.09813888]
[1764646496280,0.23188655,86393.0,86392.0,0.0866548]
[1764646496661,0.00038632,86393.0,86392.0,0.0866548]
[1764646496911,0.00038632,86393.0,86392.0,0.09813888]
[1764646499804,0.00038632,86393.0,86392.0,0.0866548]
[1764646500482,0.00038632,86393.0,86392.0,0.0364848]
[1764646500687,0.00038632,86393.0,86392.0,0.0866548]
[1764646501507,0.00038632,86393.0,86392.0,0.09813888]
[1764646502465,0.00038632,86393.0,86392.0,0.09613888]
[1764646502776,0.00038632,86393.0,86392.0,0.10013888]
[1764646504366,0.00038632,86393.0,86392.0,0.0886548]
[1764646504525,0.01157099,86423.0,86418.0,0.02305574]
[1764646504712,0.33468684,86423.0,86422.0,0.05701]
[1764646504913,0.01168684,86423.0,86422.0,0.05701]
[1764646506161,0.00011585,86423.0,86422.0,0.11406408]
[1764646506475,0.00011585,86423.0,86422.0,0.36380663]
[1764646506846,0.00011585,86423.0,86422.0,0.68680663]
[1764646507219,0.03781,86439.0,86438.0,0.24286379]
[1764646507345,0.03781,86439.0,86438.0,0.29311379]
[1764646507554,0.03781,86439.0,86438.0,0.33868379]
[1764646507753,0.03781,86439.0,86438.0,0.72420678]
[1764646508700,0.03781,86439.0,86438.0,0.72920678]
[1764646509099,0.03781,86439.0,86438.0,0.73120678]
[1764646509733,0.03766,86439.0,86438.0,0.71288678]
[1764646509864,0.03766,86439.0,86438.0,0.73120678]
[1764646510072,0.01156443,86472.0,86459.0,0.23132315]
[1764646510073,0.11442544,86471.0,86459.0,0.23132315]
[1764646510275,0.23131305,86463.0,86460.0,0.02278]
[1764646510668,0.24287869,86463.0,86460.0,0.02278]
[1764646510862,0.24287869,86463.0,86462.0,0.03193]
[1764646511903,0.24287869,86463.0,86462.0,0.03293]
[1764646512107,0.32817869,86463.0,86462.0,0.002]
[1764646512333,0.27734869,86463.0,86462.0,0.002]
[1764646513534,0.27734869,86463.0,86462.0,0.001]
[1764646513726,0.27834869,86463.0,86462.0,0.001]
[1764646514104,0.01156644,86457.0,86452.0,0.01156711]
[1764646514338,0.01156657,86456.0,86451.0,0.05266724]
[1764646514545,0.01156617,86459.0,86456.0,0.03193]
[1764646514783,0.001,86463.0,86455.0,0.02305079]
[1764646514983,0.001,86463.0,86462.0,0.01148408]
[1764646515187,0.24287538,86465.0,86463.0,0.01148408]
[1764646515393,0.24287538,86465.0,86464.0,0.03193]
[1764646515599,0.24287538,86465.0,86463.0,0.01148408]
[1764646515936,0.01156671,86455.0,86452.0,0.001]
[1764646516142,0.02438,86453.0,86452.0,0.001]
[1764646516547,0.02438,86453.0,86437.0,0.02278]
[1764646516548,0.24294383,86440.0,86437.0,0.02278]
[1764646516747,0.01156871,86440.0,86439.0,0.01148408]
[1764646516946,0.01156871,86440.0,86439.0,0.03193]
[1764646518008,0.01156871,86440.0,86439.0,0.001]
[1764646518182,0.01156871,86440.0,86439.0,0.003]
[1764646519877,0.01156871,86440.0,86439.0,0.03493]
[1764646522712,0.01156871,86440.0,86439.0,0.09198408]
[1764646522880,0.24292041,86449.0,86441.0,0.01156858]
[1764646523113,0.24293205,86444.0,86441.0,0.03193]
[1764646523440,0.01156831,86443.0,86442.0,0.04557]
[1764646523849,0.01156831,86443.0,86442.0,0.0775]
[1764646524687,0.01156831,86443.0,86442.0,0.0785]
[1764646525313,0.01156831,86443.0,86442.0,0.0805]
[1764646525475,0.00011581,86449.0,86443.0,0.01156831]
[1764646525684,0.01156791,86446.0,86442.0,0.003]
[1764646525898,0.23136365,86444.0,86442.0,0.003]
[1764646526314,0.23136365,86444.0,86442.0,0.002]
[1764646526473,0.23136365,86444.0,86437.0,0.0411]
[1764646526690,0.23137971,86438.0,86437.0,0.0411]
[1764646527091,0.23137971,86438.0,86437.0,0.07303]
[1764646527509,0.23137971,86438.0,86437.0,0.07403]
[1764646527912,0.23137971,86438.0,86437.0,0.07303]
[1764646528109,0.23137971,86438.0,86437.0,0.05671]
[1764646528912,0.23137971,86438.0,86437.0,0.02478]
[1764646529347,0.23137971,86438.0,86437.0,0.02578]
[1764646530403,0.31667971,86438.0,86437.0,0.003]
[1764646530701,0.13579571,86438.0,86437.0,0.003]
[1764646530858,0.13579571,86438.0,86437.0,0.001]
[1764646531063,0.23139845,86431.0,86430.0,0.00102775]
[1764646531473,0.01156965,86433.0,86430.0,0.03295775]
[1764646531804,0.01156938,86435.0,86432.0,0.03193]
[1764646531946,0.01156938,86435.0,86434.0,0.04341408]
[1764646532541,0.01156858,86441.0,86436.0,0.01156925]
[1764646532822,0.01156845,86442.0,86440.0,0.03093]
[1764646533023,0.24293978,86442.0,86439.0,0.01148408]
[1764646533222,0.24293978,86442.0,86441.0,0.03193]
[1764646533592,0.24293978,86442.0,86441.0,0.08021]
[1764646535021,0.23137436,86440.0,86439.0,0.01148408]
[1764646535456,0.23137436,86440.0,86439.0,0.04709408]
[1764646536552,0.23137436,86440.0,86439.0,0.04809408]
[1764646536712,0.23137436,86440.0,86439.0,0.09605408]
[1764646537161,0.01156804,86445.0,86439.0,0.09605408]
[1764646537361,0.72018547,86451.0,86439.0,0.09605408]
[1764646537362,0.23135843,86446.0,86444.0,0.03528]
[1764646537565,0.24292076,86448.0,86443.0,0.01148408]
[1764646537786,0.23135741,86447.0,86444.0,0.04796]
[1764646537928,0.24292805,86446.0,86444.0,0.04796]
[1764646538471,0.01168332,86449.0,86445.0,0.04684804]
[1764646538647,0.01156764,86448.0,86444.0,0.05952818]
[1764646538846,0.01156791,86446.0,86445.0,0.04796]
[1764646539370,0.01156791,86446.0,86445.0,0.08324]
[1764646540334,0.01156791,86446.0,86445.0,0.08424]
[1764646540932,0.00011581,86449.0,86445.0,0.08424]
[1764646541250,0.01168332,86449.0,86448.0,0.04676408]
[1764646541475,0.01168332,86449.0,86448.0,0.03528]
[1764646541647,0.00011581,86449.0,86448.0,0.09472408]
[1764646542256,0.00011581,86449.0,86448.0,0.08324]
[1764646545997,0.00011581,86449.0,86448.0,0.31459295]
[1764646546837,0.00011581,86449.0,86448.0,0.32607703]
[1764646548467,0.00011581,86449.0,86448.0,0.04676408]
[1764646548686,0.00011581,86449.0,86448.0,0.09472408]
[1764646549992,0.00011581,86449.0,86448.0,0.08324]
[1764646550176,0.00011581,86449.0,86448.0,0.09472408]
[1764646554437,0.00011581,86449.0,86448.0,0.09572408]
[1764646554776,0.00011581,86449.0,86448.0,0.09772408]
[1764646558903,0.00011581,86449.0,86448.0,0.08624]
[1764646559043,0.00011581,86449.0,86448.0,0.09772408]
[1764646561637,0.00011581,86449.0,86448.0,0.47176299]
[1764646561807,0.00011581,86449.0,86448.0,0.48324707]
[1764646562011,0.00011581,86449.0,86448.0,0.88324707]
[1764646562576,0.00011581,86449.0,86448.0,0.88124707]
[1764646562989,0.00011581,86449.0,86448.0,0.88024707]
[1764646563391,0.00011581,86449.0,86448.0,0.88224707]
[1764646563826,0.00011581,86449.0,86448.0,0.89024707]
[1764646563985,0.00011581,86449.0,86448.0,0.88824707]
[1764646564187,0.00011581,86449.0,86448.0,0.89024707]
[1764646569050,0.00011581,86449.0,86448.0,0.90856707]
[1764646569748,0.00011581,86449.0,86448.0,0.90656707]
[1764646569990,0.00011581,86449.0,86448.0,0.89856707]
[1764646570200,0.00011581,86449.0,86448.0,0.90056707]
[1764646570402,0.00011581,86449.0,86448.0,0.90656707]
[1764646572880,0.0115635,86479.0,86478.0,0.01148408]
[1764646573082,0.01167928,86479.0,86478.0,0.06561408]
[1764646573408,0.24371259,86479.0,86478.0,0.06561408]
[1764646573605,0.00087908,86479.0,86478.0,0.10886408]
[1764646573844,0.00087908,86479.0,86478.0,0.10986408]
[1764646574040,0.00087908,86479.0,86478.0,0.11086408]
[1764646574802,0.00087908,86479.0,86478.0,0.09938]
[1764646575034,0.00087908,86479.0,86478.0,0.02363]
[1764646575235,0.34607311,86479.0,86478.0,0.002]
[1764646575772,0.31013909,86479.0,86478.0,0.002]
[1764646576177,0.34607311,86479.0,86478.0,0.002]
[1764646576919,0.31013909,86479.0,86478.0,0.002]
[1764646577066,0.31013909,86479.0,86478.0,0.001]
[1764646577270,0.01156523,86466.0,86463.0,0.02163]
[1764646577479,0.00028629,86464.0,86463.0,0.02163]
[1764646577917,0.00028629,86464.0,86463.0,0.05413]
[1764646578716,0.00028629,86464.0,86463.0,0.05613]
[1764646579393,0.00028629,86464.0,86463.0,0.09938]
[1764646579594,0.00028629,86464.0,86463.0,0.10038]
[1764646583817,0.00028629,86464.0,86463.0,0.05713]
[1764646584017,0.00028629,86464.0,86463.0,0.003]
[1764646584870,0.00028629,86464.0,86463.0,0.002]
[1764646585142,0.00028629,86464.0,86458.0,0.02163]
[1764646585143,0.23132084,86460.0,86459.0,0.01148408]
[1764646585537,0.23132084,86460.0,86459.0,0.08723408]
[1764646586153,0.01156577,86462.0,86459.0,0.08723408]
[1764646586361,0.24288358,86462.0,86461.0,0.0325]
[1764646586772,0.24288358,86462.0,86461.0,0.08723408]
[1764646588228,0.24288358,86462.0,86461.0,0.08923408]
[1764646588659,0.24286106,86470.0,86467.0,0.01148408]
[1764646588831,0.23129894,86469.0,86467.0,0.01148408]
[1764646589464,0.23129894,86469.0,86468.0,0.0325]
[1764646590844,0.23129894,86469.0,86468.0,0.07631]
[1764646591244,0.23174425,86469.0,86468.0,0.07631]
[1764646592143,0.23174425,86469.0,86468.0,0.0325]
[1764646594804,0.00044531,86469.0,86468.0,0.0325]
[1764646595009,0.00044531,86469.0,86468.0,0.08746408]
[1764646595992,0.00044531,86469.0,86468.0,0.08846408]
[1764646596219,0.00044531,86469.0,86468.0,0.10678408]
[1764646596828,0.00044531,86469.0,86468.0,0.10778408]
[1764646597028,0.00044531,86469.0,86468.0,0.10678408]
[1764646597266,0.00044531,86469.0,86468.0,0.10578408]
[1764646597468,0.00044531,86469.0,86468.0,0.10878408]
[1764646598070,0.00044531,86469.0,86468.0,0.10778408]
[1764646598433,0.00044531,86469.0,86468.0,0.10878408]
[1764646599787,0.00044531,86469.0,86468.0,0.17130707]
[1764646600965,0.00044531,86469.0,86468.0,0.17594213]
[1764646601591,0.00044531,86469.0,86468.0,0.17494213]
[1764646602023,0.00044531,86469.0,86468.0,0.17694213]
[1764646602337,0.00044531,86469.0,86468.0,0.49994213]
[1764646602500,0.00044531,86469.0,86468.0,0.49794213]
[1764646603113,0.00044531,86469.0,86468.0,0.49594213]
[1764646603644,0.00044531,86469.0,86468.0,0.50094213]
[1764646603852,0.00044531,86469.0,86468.0,0.49794213]
[1764646603994,0.00011578,86479.0,86478.0,0.39700707]
[1764646604200,12.26861194,86491.0,86490.0,0.12765707]
[1764646604437,12.2689978,86491.0,86490.0,0.14593707]
[1764646604626,12.2689978,86491.0,86490.0,0.18941707]
[1764646605331,12.2689978,86491.0,86490.0,0.19041707]
[1764646606815,12.2689978,86491.0,86490.0,0.51641707]
[1764646607507,12.2689978,86491.0,86490.0,0.51541707]
[1764646607711,12.2689978,86491.0,86490.0,0.51241707]
[1764646607916,12.2689978,86491.0,86490.0,0.92041707]
[1764646608252,11.4606759,86491.0,86490.0,0.92041707]
[1764646608414,11.14460423,86491.0,86490.0,0.92041707]
[1764646608923,10.81497616,86491.0,86490.0,0.92041707]
[1764646609123,10.45524298,86491.0,86490.0,0.92041707]
[1764646609366,10.33829267,86491.0,86490.0,0.91441707]
[1764646609567,9.95100436,86491.0,86490.0,0.92341707]
[1764646609743,9.77305615,86491.0,86490.0,0.92141707]
[1764646609944,9.7737557,86491.0,86490.0,0.92141707]
[1764646610144,9.44214841,86491.0,86490.0,0.92341707]
[1764646610343,9.18780461,86491.0,86490.0,0.92341707]
[1764646610546,9.07582875,86491.0,86490.0,0.92141707]
[1764646610747,9.07582875,86491.0,86490.0,0.90313707]
[1764646610954,9.07582875,86491.0,86490.0,0.50813]
[1764646611312,9.07582875,86491.0,86490.0,0.92341707]
[1764646611726,9.07582875,86491.0,86490.0,0.60041707]
[1764646611868,9.07582875,86491.0,86490.0,0.92341707]
[1764646612321,9.07582875,86491.0,86490.0,0.91441707]
[1764646612620,9.07582875,86491.0,86490.0,0.92041707]
[1764646612831,9.07582875,86491.0,86490.0,0.91841707]
[1764646613038,9.07582875,86491.0,86490.0,0.91241707]
[1764646613240,9.07582875,86491.0,86490.0,0.92241707]
[1764646613589,9.07582875,86491.0,86490.0,0.92041707]
[1764646614025,9.07582875,86491.0,86490.0,0.91441707]
[1764646614397,9.07582875,86491.0,86490.0,0.91941707]
[1764646614813,9.07582875,86491.0,86490.0,0.92141707]
[1764646615853,9.07582875,86491.0,86490.0,0.90313707]
[1764646616059,9.07582875,86491.0,86490.0,0.92145707]
[1764646616607,9.07582875,86491.0,86490.0,0.91445707]
[1764646616800,9.07582875,86491.0,86490.0,0.91245707]
[1764646616941,9.07582875,86491.0,86490.0,0.92045707]
[1764646618427,9.07582875,86491.0,86490.0,0.57913707]
[1764646618549,9.07582875,86491.0,86490.0,0.59745707]
[1764646618744,9.07582875,86491.0,86490.0,0.92045707]
[1764646620214,9.07582875,86491.0,86490.0,0.94921153]
[1764646620426,9.07582875,86491.0,86490.0,0.55421153]
[1764646620623,9.07582875,86491.0,86490.0,0.55221153]
[1764646621035,9.07582875,86491.0,86490.0,0.55421153]
[1764646621429,9.07582875,86491.0,86490.0,0.55221153]
[1764646622021,9.07582875,86491.0,86490.0,0.54721153]
[1764646622426,9.07582875,86491.0,86490.0,0.55121153]
[1764646622637,9.07582875,86491.0,86490.0,0.55221153]
[1764646623254,9.07582875,86491.0,86490.0,0.54721153]
[1764646623464,9.07582875,86491.0,86490.0,0.55421153]
[1764646623842,9.07582875,86491.0,86490.0,0.54921153]
[1764646624079,9.07582875,86491.0,86490.0,0.55221153]
[1764646624287,9.07582875,86491.0,86490.0,0.55421153]
[1764646625683,9.07582875,86491.0,86490.0,0.54721153]
[1764646626089,9.07582875,86491.0,86490.0,0.55221153]
[1764646638068,9.07582875,86491.0,86490.0,0.51745707]
[1764646641924,8.91435956,86491.0,86490.0,0.51745707]
[1764646645771,8.91435956,86491.0,86490.0,0.51345707]
[1764646646208,8.91435956,86491.0,86490.0,0.51945707]
[1764646646742,8.91435956,86491.0,86490.0,0.91845707]
[1764646647159,8.91435956,86491.0,86490.0,0.92045707]
[1764646647505,8.91435956,86491.0,86490.0,0.91845707]
[1764646647711,8.91435956,86491.0,86490.0,0.91245707]
[1764646647919,8.91435956,86491.0,86490.0,0.91445707]
[1764646648090,8.91435956,86491.0,86490.0,0.92245707]
[1764646648899,8.91435956,86491.0,86490.0,0.95720706]
[1764646649100,8.74301263,86491.0,86490.0,0.95720706]
[1764646650591,7.88170397,86491.0,86490.0,1.07910706]
[1764646650728,7.80192208,86491.0,86490.0,1.07910706]
[1764646650937,7.54066824,86491.0,86490.0,1.07910706]
[1764646651138,7.30403623,86491.0,86490.0,1.07910706]
[1764646651341,7.13352313,86491.0,86490.0,1.07910706]
[1764646651610,6.93630936,86491.0,86490.0,1.07910706]
[1764646651785,6.59765672,86491.0,86490.0,1.07910706]
[1764646652018,6.25264683,86491.0,86490.0,1.07910706]
[1764646652179,6.09663184,86491.0,86490.0,1.07910706]
[1764646652374,5.89873565,86491.0,86490.0,1.07910706]
[1764646652700,5.6132547,86491.0,86490.0,1.07910706]
[1764646652852,5.5222731,86491.0,86490.0,1.07910706]
[1764646653274,5.5222731,86491.0,86490.0,1.06078706]
[1764646653469,5.5222731,86491.0,86490.0,1.07906706]
[1764646653671,5.5222731,86491.0,86490.0,0.95716706]
[1764646653901,5.5222731,86491.0,86490.0,0.55336407]
[1764646654060,5.5222731,86491.0,86490.0,0.63416706]
[1764646654261,5.5222731,86491.0,86490.0,0.56364407]
[1764646654465,5.5222731,86491.0,86490.0,0.56164407]
[1764646654665,5.5222731,86491.0,86490.0,0.95816706]
[1764646654874,5.5222731,86491.0,86490.0,0.88664407]
[1764646655071,5.5222731,86491.0,86490.0,0.94916706]
[1764646655278,5.51133563,86491.0,86490.0,1.08006706]
[1764646655488,5.51133563,86491.0,86490.0,1.07106706]
[1764646655935,4.83039487,86491.0,86490.0,1.07706706]
[1764646656137,4.51502026,86491.0,86490.0,1.22556706]
[1764646656339,4.14854535,86491.0,86490.0,3.22756706]
[1764646656543,3.98900811,86491.0,86490.0,3.22756706]
[1764646656743,3.81074854,86491.0,86490.0,3.22556706]
[1764646656966,3.8047029,86491.0,86490.0,3.21756706]
[1764646657178,3.36863885,86491.0,86490.0,3.21956706]
[1764646657378,3.36863885,86491.0,86490.0,3.32456706]
[1764646657379,1.63534789,86491.0,86490.0,3.32456706]
[1764646657551,1.34066361,86491.0,86490.0,3.31256706]
[1764646657754,1.20427455,86491.0,86490.0,3.31256706]
[1764646657954,1.20427455,86491.0,86490.0,3.31556706]
[1764646658158,0.87704867,86491.0,86490.0,3.32760706]
[1764646658525,0.7201372,86491.0,86490.0,3.31560706]
[1764646658719,0.7201372,86491.0,86490.0,3.22060706]
[1764646658932,0.7201372,86491.0,86490.0,2.89428706]
[1764646659128,0.7201372,86491.0,86490.0,0.89460706]
[1764646659573,0.7201372,86491.0,86490.0,1.22160706]
[1764646660335,0.7201372,86491.0,86490.0,1.22960706]
[1764646660810,0.7201372,86491.0,86490.0,1.22060706]
[1764646660962,0.7201372,86491.0,86490.0,1.23160706]
[1764646662462,0.7201372,86491.0,86490.0,3.23160706]
[1764646663258,0.7201372,86491.0,86490.0,1.23160706]
[1764646663466,0.7201372,86491.0,86490.0,3.23160706]
[1764646666272,0.19315417,86491.0,86490.0,3.23160706]
[1764646669063,0.04465417,86491.0,86490.0,3.23160706]
[1764646670764,0.04465417,86491.0,86490.0,3.22060706]
[1764646670979,0.04465417,86491.0,86490.0,3.23360706]
[1764646671158,0.04465417,86491.0,86490.0,3.23060706]
[1764646671360,0.04465417,86491.0,86490.0,3.23360706]
[1764646673345,0.04465417,86491.0,86490.0,3.25681706]
[1764646674250,0.0004,86500.0,86499.0,2.75012361]
[1764646674452,0.0004,86500.0,86499.0,2.96233361]
[1764646674648,0.0004,86500.0,86499.0,3.06016361]
[1764646674833,0.0004,86500.0,86499.0,3.46479524]
[1764646675351,0.0004,86500.0,86499.0,3.46779524]
[1764646675944,0.0004,86500.0,86499.0,3.46479524]
[1764646676574,0.0004,86500.0,86499.0,3.47579524]
[1764646676773,1e-08,86500.0,86499.0,3.46479524]
[1764646676979,0.0004,86520.0,86519.0,0.62817016]
[1764646677179,0.0004,86520.0,86519.0,0.71016016]
[1764646677382,0.0004,86520.0,86519.0,0.80799016]
[1764646677583,0.0004,86520.0,86519.0,1.21262131]
[1764646677985,0.0004,86520.0,86519.0,1.21462131]
[1764646678266,0.0004,86520.0,86519.0,1.22362131]
[1764646681258,0.0004,86520.0,86519.0,1.34552131]
[1764646682116,0.0004,86520.0,86519.0,1.34352131]
[1764646682809,0.0004,86520.0,86519.0,1.33452131]
[1764646682954,0.0004,86520.0,86519.0,1.34452131]
[1764646683398,0.0004,86520.0,86519.0,1.33752131]
[1764646683633,0.0004,86520.0,86519.0,1.34852131]
[1764646683775,0.0004,86520.0,86519.0,1.34552131]
[1764646684158,0.0004,86520.0,86519.0,1.34852131]
[1764646684977,1e-08,86520.0,86519.0,1.33703723]
[1764646685182,0.0004,86530.0,86529.0,0.62814345]
[1764646685411,0.0004,86530.0,86529.0,0.71013345]
[1764646685808,0.0004,86530.0,86529.0,1.20378345]
[1764646686029,0.0004,86530.0,86529.0,1.20841354]
[1764646686178,0.0004,86530.0,86529.0,1.33031354]
[1764646686702,0.0004,86530.0,86529.0,1.34131354]
[1764646687092,0.00163938,86530.0,86529.0,1.34131354]
[1764646690780,0.00163938,86530.0,86529.0,1.36791354]
[1764646692877,0.00163938,86530.0,86529.0,1.48981354]
[1764646693882,0.00163938,86530.0,86529.0,1.36791354]
[1764646694105,0.00163938,86530.0,86529.0,1.48981354]
[1764646694465,0.00175511,86530.0,86529.0,1.48981354]
[1764646698227,0.0004,86550.0,86539.0,0.75001674]
[1764646698441,0.0004,86550.0,86539.0,0.83180674]
[1764646698648,0.0004,86550.0,86539.0,0.92545674]
[1764646698853,0.0004,86550.0,86539.0,1.33008637]
[1764646699352,0.41998336,86580.0,86579.0,0.07499408]
[1764646699552,0.00011567,86580.0,86579.0,0.12189408]
[1764646699770,0.01155107,86572.0,86569.0,0.323]
[1764646699980,0.01155094,86573.0,86570.0,0.01828]
[1764646700175,0.01155081,86574.0,86571.0,0.06351]
[1764646700380,0.01155481,86544.0,86530.0,0.00999999]
[1764646700601,0.01155481,86544.0,86543.0,0.12189408]
[1764646700759,0.01155481,86544.0,86543.0,0.14017408]
[1764646700968,0.01155481,86544.0,86543.0,0.23382408]
[1764646702286,0.01155481,86544.0,86543.0,0.23582408]
[1764646702625,0.01155481,86544.0,86543.0,0.14217408]
[1764646703110,0.01155481,86544.0,86543.0,0.23582408]
[1764646706138,0.01155481,86544.0,86543.0,0.14217408]
[1764646706354,0.01199955,86544.0,86543.0,0.14217408]
[1764646706691,0.01199955,86544.0,86543.0,0.13069]
[1764646706834,0.01199955,86544.0,86543.0,0.14217408]
[1764646707795,0.01199955,86544.0,86543.0,0.23382408]
[1764646707796,0.00044474,86544.0,86543.0,0.23382408]
[1764646707950,0.00044474,86544.0,86543.0,0.22334]
[1764646708149,0.00044474,86544.0,86543.0,0.23482408]
[1764646708715,0.00044474,86544.0,86543.0,0.22334]
[1764646708926,0.00044474,86544.0,86543.0,0.12969]
[1764646709127,0.02706376,86544.0,86543.0,0.11041]
[1764646709456,0.02706376,86544.0,86543.0,0.14017408]
[1764646709656,0.02706376,86544.0,86543.0,0.14217408]
[1764646710117,0.00044474,86544.0,86543.0,0.14217408]
[1764646710905,0.00044474,86544.0,86543.0,0.14017408]
[1764646711100,0.00044474,86544.0,86543.0,0.14117408]
[1764646711820,0.00044474,86544.0,86543.0,0.24069408]
[1764646713859,0.00044474,86544.0,86543.0,0.23969408]
[1764646714069,0.00044474,86544.0,86543.0,0.24169408]
[1764646714488,0.00044474,86544.0,86543.0,0.23021]
[1764646714638,0.00044474,86544.0,86543.0,0.30421707]
[1764646715687,0.00044474,86544.0,86543.0,0.62721707]
[1764646716855,0.00044474,86544.0,86543.0,0.62521707]
[1764646717054,0.00044474,86544.0,86543.0,0.62621707]
[1764646717285,0.00044474,86544.0,86543.0,0.62921707]
[1764646719964,0.00044474,86544.0,86543.0,0.64076948]
[1764646721085,0.00044474,86544.0,86543.0,0.62921707]
[1764646721284,0.00044474,86544.0,86543.0,0.61773299]
[1764646721508,0.00044474,86544.0,86543.0,0.86031606]
[1764646723856,0.00044474,86544.0,86543.0,0.62921707]
[1764646724740,0.00044474,86544.0,86543.0,0.64077041]
[1764646725045,0.00044474,86544.0,86543.0,0.22541408]
[1764646725310,0.00044474,86544.0,86543.0,0.23221]
[1764646725541,0.00044474,86544.0,86543.0,0.23607408]
[1764646725988,0.00044474,86544.0,86543.0,0.23507408]
[1764646726222,0.00044474,86544.0,86543.0,0.23207408]
[1764646726595,0.23154106,86544.0,86543.0,0.23207408]
[1764646727162,0.23154106,86544.0,86543.0,0.23407408]
[1764646729673,0.30322388,86544.0,86543.0,0.06718]